[Event "Early-Titled-Tuesday-Blitz-May-07-2024"]
[Site "Chess.com"]
[Date "2024.05.07"]
[Round "3"]
[White "Njal28"]
[Black "ViralduS"]
[Result "1-0"]
[WhiteElo "3118"]
[BlackElo "2653"]
[TimeControl "180+1"]
[EndTime "8:30:23 PDT"]
[Termination "Njal28 won by checkmate"]

1. e4 {[%clk 0:03:00.9]} 1... c6 {[%clk 0:02:58.3]} 2. d4 {[%clk 0:02:59.4]}
2... d5 {[%clk 0:02:57.1]} 3. e5 {[%clk 0:02:59.5]} 3... Bf5 {[%clk 0:02:55.2]}
4. Bd3 {[%clk 0:02:59.4]} 4... Bxd3 {[%clk 0:02:53.5]} 5. Qxd3 {[%clk
0:03:00.2]} 5... e6 {[%clk 0:02:51.8]} 6. Ne2 {[%clk 0:03:00.6]} 6... Ne7 {[%clk
0:02:43.4]} 7. O-O {[%clk 0:02:59.5]} 7... Nf5 {[%clk 0:02:34.9]} 8. c3 {[%clk
0:03:00]} 8... Be7 {[%clk 0:02:28.1]} 9. Nd2 {[%clk 0:02:55.8]} 9... O-O {[%clk
0:02:25.5]} 10. f4 {[%clk 0:02:46.3]} 10... h5 {[%clk 0:01:46.7]} 11. Ng3 {[%clk
0:02:40.8]} 11... g6 {[%clk 0:01:40]} 12. Nxf5 {[%clk 0:02:33.9]} 12... exf5
{[%clk 0:01:39.8]} 13. Nf3 {[%clk 0:02:31.5]} 13... Re8 {[%clk 0:01:36.4]} 14.
e6 {[%clk 0:02:18.3]} 14... f6 {[%clk 0:01:28.7]} 15. Nh4 {[%clk 0:02:18.1]}
15... Kh7 {[%clk 0:01:21.5]} 16. Nxf5 {[%clk 0:02:13.8]} 16... gxf5 {[%clk
0:01:18.6]} 17. Qxf5+ {[%clk 0:02:14.7]} 17... Kg7 {[%clk 0:01:19]} 18. Rf3
{[%clk 0:02:12]} 18... Rg8 {[%clk 0:00:53.8]} 19. Rg3+ {[%clk 0:02:04.3]} 19...
Kh6 {[%clk 0:00:44]} 20. Rh3 {[%clk 0:00:55.6]} 20... Qe8 {[%clk 0:00:42.9]} 21.
g4 {[%clk 0:00:56.1]} 21... Qg6 {[%clk 0:00:23.4]} 22. Rxh5+ {[%clk 0:00:54.4]}
22... Kg7 {[%clk 0:00:23.7]} 23. Qxg6+ {[%clk 0:00:54]} 23... Kxg6 {[%clk
0:00:24.6]} 24. f5+ {[%clk 0:00:54.6]} 24... Kg7 {[%clk 0:00:25.4]} 25. Bh6+
{[%clk 0:00:55]} 25... Kh7 {[%clk 0:00:25.8]} 26. Bf8# {[%clk 0:00:55.9]} 1-0

[Event "Early-Titled-Tuesday-Blitz-May-07-2024"]
[Site "Chess.com"]
[Date "2024.05.07"]
[Round "3"]
[White "KChor05"]
[Black "Cheer_Down"]
[Result "0-1"]
[WhiteElo "2612"]
[BlackElo "2477"]
[TimeControl "180+1"]
[EndTime "8:30:27 PDT"]
[Termination "Cheer_Down won by resignation"]

1. d4 {[%clk 0:03:00.9]} 1... d5 {[%clk 0:03:00.1]} 2. c4 {[%clk 0:02:58.9]}
2... e6 {[%clk 0:03:00.5]} 3. Nf3 {[%clk 0:02:58.7]} 3... Nf6 {[%clk 0:02:59.8]}
4. g3 {[%clk 0:02:58.8]} 4... Be7 {[%clk 0:02:59]} 5. Bg2 {[%clk 0:02:58.9]}
5... O-O {[%clk 0:02:59.1]} 6. O-O {[%clk 0:02:59.2]} 6... dxc4 {[%clk
0:02:59.5]} 7. Qc2 {[%clk 0:02:59.6]} 7... a6 {[%clk 0:02:59.3]} 8. a4 {[%clk
0:02:59.5]} 8... Bd7 {[%clk 0:02:59.2]} 9. Ne5 {[%clk 0:02:54.6]} 9... Bc6
{[%clk 0:02:56.4]} 10. Nxc6 {[%clk 0:02:52.5]} 10... Nxc6 {[%clk 0:02:56.6]} 11.
e3 {[%clk 0:02:53]} 11... Na5 {[%clk 0:02:36.7]} 12. Nd2 {[%clk 0:02:45.6]}
12... c5 {[%clk 0:02:31.8]} 13. dxc5 {[%clk 0:02:33.6]} 13... Rc8 {[%clk
0:02:27.2]} 14. b4 {[%clk 0:02:28.6]} 14... cxb3 {[%clk 0:02:24.5]} 15. Nxb3
{[%clk 0:02:28.5]} 15... Nxb3 {[%clk 0:02:24.5]} 16. Qxb3 {[%clk 0:02:29.4]}
16... Bxc5 {[%clk 0:02:14]} 17. Qxb7 {[%clk 0:02:24.7]} 17... a5 {[%clk
0:02:13.3]} 18. Qb3 {[%clk 0:02:08.1]} 18... Qe7 {[%clk 0:01:58.8]} 19. Bd2
{[%clk 0:02:02.3]} 19... Rb8 {[%clk 0:01:54.8]} 20. Qc2 {[%clk 0:01:33.5]} 20...
Bb4 {[%clk 0:01:54.6]} 21. Rfd1 {[%clk 0:01:33.1]} 21... Rfc8 {[%clk 0:01:52.3]}
22. Qa2 {[%clk 0:01:32.9]} 22... Bxd2 {[%clk 0:01:43.7]} 23. Qxd2 {[%clk
0:01:31.8]} 23... Qb4 {[%clk 0:01:37.6]} 24. Qe2 {[%clk 0:01:27.2]} 24... g6
{[%clk 0:01:34.7]} 25. h4 {[%clk 0:01:22.5]} 25... h5 {[%clk 0:01:34.1]} 26. Qf3
{[%clk 0:01:20.3]} 26... Kg7 {[%clk 0:01:33.9]} 27. Rd4 {[%clk 0:01:10]} 27...
Qb2 {[%clk 0:01:30.1]} 28. Rad1 {[%clk 0:01:09.4]} 28... Rb4 {[%clk 0:01:28.1]}
29. Qf4 {[%clk 0:01:03.2]} 29... Rc1 {[%clk 0:01:22.3]} 30. Rxc1 {[%clk
0:00:49.2]} 30... Qxc1+ {[%clk 0:01:15.3]} 31. Bf1 {[%clk 0:00:49.5]} 31... Rb1
{[%clk 0:01:12.8]} 0-1

[Event "Early-Titled-Tuesday-Blitz-May-07-2024"]
[Site "Chess.com"]
[Date "2024.05.07"]
[Round "3"]
[White "Nitzan_Steinberg"]
[Black "GeorgiosSouleidis"]
[Result "1-0"]
[WhiteElo "2929"]
[BlackElo "2704"]
[TimeControl "180+1"]
[EndTime "8:30:31 PDT"]
[Termination "Nitzan_Steinberg won on time"]

1. e4 {[%clk 0:03:00.9]} 1... c5 {[%clk 0:02:59.8]} 2. Nf3 {[%clk 0:03:01]} 2...
e6 {[%clk 0:03:00.2]} 3. d4 {[%clk 0:03:01.1]} 3... cxd4 {[%clk 0:03:01.1]} 4.
Nxd4 {[%clk 0:03:01.9]} 4... Nf6 {[%clk 0:03:01.7]} 5. Nc3 {[%clk 0:03:02.3]}
5... Nc6 {[%clk 0:03:02.3]} 6. a3 {[%clk 0:02:59.8]} 6... Be7 {[%clk 0:03:00.1]}
7. Be2 {[%clk 0:02:59.2]} 7... O-O {[%clk 0:03:00.2]} 8. Be3 {[%clk 0:02:58.5]}
8... Qc7 {[%clk 0:02:59.9]} 9. O-O {[%clk 0:02:53.8]} 9... a6 {[%clk 0:02:59.6]}
10. f4 {[%clk 0:02:51.8]} 10... d6 {[%clk 0:02:59.8]} 11. Qe1 {[%clk 0:02:52.3]}
11... Nxd4 {[%clk 0:02:54.4]} 12. Bxd4 {[%clk 0:02:52.6]} 12... e5 {[%clk
0:02:55]} 13. fxe5 {[%clk 0:02:49.6]} 13... dxe5 {[%clk 0:02:55.8]} 14. Qg3
{[%clk 0:02:49.4]} 14... Bc5 {[%clk 0:02:48.3]} 15. Bxc5 {[%clk 0:02:49.3]}
15... Qxc5+ {[%clk 0:02:49.2]} 16. Kh1 {[%clk 0:02:49.3]} 16... Qe7 {[%clk
0:02:31.3]} 17. Rf2 {[%clk 0:02:31.8]} 17... Bd7 {[%clk 0:01:35.8]} 18. Raf1
{[%clk 0:02:31.4]} 18... Ne8 {[%clk 0:01:36.1]} 19. Nd5 {[%clk 0:02:27]} 19...
Qd6 {[%clk 0:01:36.2]} 20. Qh4 {[%clk 0:02:10.7]} 20... f6 {[%clk 0:01:21.1]}
21. Bc4 {[%clk 0:02:07.5]} 21... Be6 {[%clk 0:01:18]} 22. Rd2 {[%clk 0:02:03.7]}
22... Qc5 {[%clk 0:00:49.6]} 23. Bb3 {[%clk 0:02:03.6]} 23... Kh8 {[%clk
0:00:34.6]} 24. Rf3 {[%clk 0:02:02]} 24... Rd8 {[%clk 0:00:20.7]} 25. Rdd3
{[%clk 0:01:34.8]} 25... g6 {[%clk 0:00:14.5]} 26. Nxf6 {[%clk 0:01:20.7]} 26...
Nxf6 {[%clk 0:00:13.9]} 27. Rxd8 {[%clk 0:01:18.9]} 1-0

[Event "Early-Titled-Tuesday-Blitz-May-07-2024"]
[Site "Chess.com"]
[Date "2024.05.07"]
[Round "3"]
[White "anasta10"]
[Black "thesupera12"]
[Result "0-1"]
[WhiteElo "2598"]
[BlackElo "2457"]
[TimeControl "180+1"]
[EndTime "8:30:31 PDT"]
[Termination "thesupera12 won by checkmate"]

1. Nf3 {[%clk 0:03:00.9]} 1... Nf6 {[%clk 0:02:56.2]} 2. c4 {[%clk 0:03:01.2]}
2... c5 {[%clk 0:02:55.5]} 3. g3 {[%clk 0:03:01]} 3... g6 {[%clk 0:02:55.5]} 4.
Bg2 {[%clk 0:03:01.5]} 4... Bg7 {[%clk 0:02:56.4]} 5. O-O {[%clk 0:03:01.8]}
5... O-O {[%clk 0:02:55.7]} 6. Nc3 {[%clk 0:03:02.5]} 6... Nc6 {[%clk
0:02:54.9]} 7. d3 {[%clk 0:03:02.7]} 7... d6 {[%clk 0:02:54.9]} 8. Bg5 {[%clk
0:02:57]} 8... Bg4 {[%clk 0:02:54.4]} 9. h3 {[%clk 0:02:53.7]} 9... h6 {[%clk
0:02:51.8]} 10. Bxf6 {[%clk 0:02:49.6]} 10... Bxf3 {[%clk 0:02:51.7]} 11. Bxg7
{[%clk 0:02:42.5]} 11... Bxg2 {[%clk 0:02:50.3]} 12. Bxf8 {[%clk 0:02:42.7]}
12... Bxf1 {[%clk 0:02:47.1]} 13. Bxe7 {[%clk 0:02:42.8]} 13... Bxe2 {[%clk
0:02:46.4]} 14. Bxd8 {[%clk 0:02:30.1]} 14... Bxd1 {[%clk 0:02:45.9]} 15. Bc7
{[%clk 0:02:30.7]} 15... Bc2 {[%clk 0:02:43.1]} 16. Bxd6 {[%clk 0:02:26.6]}
16... Bxd3 {[%clk 0:02:43.3]} 17. b3 {[%clk 0:02:18]} 17... b6 {[%clk
0:02:41.1]} 18. Rd1 {[%clk 0:02:18.5]} 18... Bf5 {[%clk 0:02:38.6]} 19. g4
{[%clk 0:02:18.8]} 19... Be6 {[%clk 0:02:36.2]} 20. Ne4 {[%clk 0:02:07.3]} 20...
Rd8 {[%clk 0:02:28.7]} 21. Rd2 {[%clk 0:01:30.6]} 21... f5 {[%clk 0:02:26.1]}
22. gxf5 {[%clk 0:01:05.3]} 22... Bxf5 {[%clk 0:02:27]} 23. Nf6+ {[%clk
0:00:24.8]} 23... Kf7 {[%clk 0:02:26.3]} 24. Ng4 {[%clk 0:00:25]} 24... h5
{[%clk 0:01:45.2]} 25. Nh6+ {[%clk 0:00:21.1]} 25... Ke6 {[%clk 0:01:45.3]} 26.
Nxf5 {[%clk 0:00:21.8]} 26... Kxf5 {[%clk 0:01:40.6]} 27. Bf4 {[%clk 0:00:22.2]}
27... Kxf4 {[%clk 0:01:39.2]} 28. Re2 {[%clk 0:00:22.4]} 28... Ne5 {[%clk
0:01:29.7]} 29. Kg2 {[%clk 0:00:21.7]} 29... g5 {[%clk 0:01:29.2]} 30. f3 {[%clk
0:00:18.9]} 30... Nxf3 {[%clk 0:01:25.3]} 31. Re7 {[%clk 0:00:17.7]} 31... Rd2+
{[%clk 0:01:25.7]} 32. Kf1 {[%clk 0:00:17.8]} 32... Kg3 {[%clk 0:01:24.1]} 33.
Rxa7 {[%clk 0:00:13.3]} 33... Rf2# {[%clk 0:01:22.9]} 0-1

[Event "Early-Titled-Tuesday-Blitz-May-07-2024"]
[Site "Chess.com"]
[Date "2024.05.07"]
[Round "3"]
[White "NovakCabarkapa"]
[Black "GMBenjaminBok"]
[Result "0-1"]
[WhiteElo "2750"]
[BlackElo "3049"]
[TimeControl "180+1"]
[EndTime "8:30:38 PDT"]
[Termination "GMBenjaminBok won by resignation"]

1. d4 {[%clk 0:03:00.9]} 1... Nf6 {[%clk 0:02:59.7]} 2. Nc3 {[%clk 0:03:00.3]}
2... d5 {[%clk 0:02:59.6]} 3. Bf4 {[%clk 0:03:00.8]} 3... c5 {[%clk 0:03:00.2]}
4. e3 {[%clk 0:03:01.3]} 4... cxd4 {[%clk 0:03:00.6]} 5. exd4 {[%clk 0:03:02.2]}
5... a6 {[%clk 0:03:01.1]} 6. Nf3 {[%clk 0:03:02.1]} 6... Nc6 {[%clk 0:03:01.6]}
7. Ne5 {[%clk 0:03:02.1]} 7... Bd7 {[%clk 0:03:02.2]} 8. Ne2 {[%clk 0:02:59.5]}
8... e6 {[%clk 0:03:00.7]} 9. c3 {[%clk 0:02:58.7]} 9... Be7 {[%clk 0:02:48.6]}
10. Ng3 {[%clk 0:02:58.6]} 10... Nxe5 {[%clk 0:02:31.2]} 11. dxe5 {[%clk
0:02:53.3]} 11... Ne4 {[%clk 0:02:28.9]} 12. Nxe4 {[%clk 0:02:31.3]} 12... dxe4
{[%clk 0:02:29.8]} 13. Qg4 {[%clk 0:02:31.5]} 13... g6 {[%clk 0:02:21]} 14. Be2
{[%clk 0:02:09.5]} 14... h5 {[%clk 0:02:08.7]} 15. Qg3 {[%clk 0:02:06.9]} 15...
Qb6 {[%clk 0:01:54.3]} 16. O-O-O {[%clk 0:01:30.2]} 16... O-O-O {[%clk
0:01:48.5]} 17. Qe3 {[%clk 0:01:04.2]} 17... Bc5 {[%clk 0:01:46.4]} 18. Qxe4
{[%clk 0:01:01.8]} 18... Bc6 {[%clk 0:01:46.7]} 19. Qc2 {[%clk 0:00:49.8]} 19...
Bxf2 {[%clk 0:01:41.4]} 20. Bf3 {[%clk 0:00:15.5]} 20... Bxf3 {[%clk 0:01:41]}
21. gxf3 {[%clk 0:00:15.7]} 21... Be3+ {[%clk 0:01:41.5]} 22. Bxe3 {[%clk
0:00:15.9]} 22... Qxe3+ {[%clk 0:01:42.4]} 23. Kb1 {[%clk 0:00:16.5]} 23... Qxe5
{[%clk 0:01:43.1]} 24. Ka1 {[%clk 0:00:10.2]} 24... Rxd1+ {[%clk 0:01:42.2]} 25.
Rxd1 {[%clk 0:00:06.4]} 25... Rd8 {[%clk 0:01:43.1]} 26. Rxd8+ {[%clk
0:00:05.8]} 26... Kxd8 {[%clk 0:01:44]} 27. Qd2+ {[%clk 0:00:05.6]} 27... Ke7
{[%clk 0:01:42.8]} 28. a3 {[%clk 0:00:05]} 28... g5 {[%clk 0:01:42.6]} 29. Qg2
{[%clk 0:00:04.6]} 29... Qd5 {[%clk 0:01:34.3]} 30. Qe2 {[%clk 0:00:02.1]} 30...
f5 {[%clk 0:01:29.3]} 31. Qf2 {[%clk 0:00:02.8]} 31... g4 {[%clk 0:01:22.8]} 32.
fxg4 {[%clk 0:00:03.7]} 32... hxg4 {[%clk 0:01:22.4]} 33. Qh4+ {[%clk
0:00:04.4]} 33... Kd7 {[%clk 0:01:22.4]} 34. Qd8+ {[%clk 0:00:05.2]} 34... Kxd8
{[%clk 0:01:22.4]} 0-1

[Event "Early-Titled-Tuesday-Blitz-May-07-2024"]
[Site "Chess.com"]
[Date "2024.05.07"]
[Round "3"]
[White "GMSrinath"]
[Black "catalin009"]
[Result "0-1"]
[WhiteElo "2837"]
[BlackElo "2570"]
[TimeControl "180+1"]
[EndTime "8:30:39 PDT"]
[Termination "catalin009 won by resignation"]

1. e4 {[%clk 0:03:00.9]} 1... c5 {[%clk 0:03:00.3]} 2. Nf3 {[%clk 0:02:59.3]}
2... e6 {[%clk 0:03:01]} 3. d4 {[%clk 0:02:58.9]} 3... cxd4 {[%clk 0:03:01.9]}
4. Nxd4 {[%clk 0:02:59.7]} 4... Nc6 {[%clk 0:03:02.8]} 5. Nc3 {[%clk 0:03:00]}
5... Qc7 {[%clk 0:03:03]} 6. g3 {[%clk 0:02:57.6]} 6... a6 {[%clk 0:03:02.5]} 7.
Bg2 {[%clk 0:02:57.7]} 7... Nf6 {[%clk 0:03:01.1]} 8. O-O {[%clk 0:02:56.6]}
8... d6 {[%clk 0:03:01.6]} 9. Re1 {[%clk 0:02:51.4]} 9... Bd7 {[%clk 0:03:01.1]}
10. Nxc6 {[%clk 0:02:34.2]} 10... Bxc6 {[%clk 0:02:56.8]} 11. Nd5 {[%clk
0:02:27.9]} 11... Bxd5 {[%clk 0:02:33.5]} 12. exd5 {[%clk 0:02:28]} 12... e5
{[%clk 0:02:34.4]} 13. a4 {[%clk 0:02:16.4]} 13... Ke7 {[%clk 0:02:27]} 14. b3
{[%clk 0:02:10.7]} 14... g6 {[%clk 0:02:25.5]} 15. Rxe5+ {[%clk 0:01:52.2]}
15... dxe5 {[%clk 0:02:24.2]} 16. d6+ {[%clk 0:01:52.8]} 16... Qxd6 {[%clk
0:02:20.2]} 17. Ba3 {[%clk 0:01:53.4]} 17... Rd8 {[%clk 0:02:15.3]} 18. Bxb7
{[%clk 0:01:48.1]} 18... Qxa3 {[%clk 0:02:10.1]} 19. Qe1 {[%clk 0:01:45.1]}
19... Qd6 {[%clk 0:01:51.8]} 20. f4 {[%clk 0:01:41.1]} 20... Qb6+ {[%clk
0:01:46.8]} 21. Kf1 {[%clk 0:01:41.4]} 21... Nd7 {[%clk 0:01:24.4]} 22. Bd5
{[%clk 0:01:40.7]} 22... Bg7 {[%clk 0:01:24.1]} 23. Rd1 {[%clk 0:01:40.6]} 23...
Rhe8 {[%clk 0:01:23.5]} 24. a5 {[%clk 0:01:39.2]} 24... Qc5 {[%clk 0:01:22.6]}
25. b4 {[%clk 0:01:35.9]} 25... Qc7 {[%clk 0:01:20.1]} 26. c4 {[%clk 0:01:34.7]}
26... Kf8 {[%clk 0:01:19.6]} 27. f5 {[%clk 0:01:35.3]} 27... e4 {[%clk
0:01:13.3]} 28. fxg6 {[%clk 0:01:33]} 28... hxg6 {[%clk 0:01:12.9]} 29. b5
{[%clk 0:01:28.4]} 29... axb5 {[%clk 0:01:09.4]} 30. cxb5 {[%clk 0:01:29.3]}
30... Nf6 {[%clk 0:01:08.3]} 31. b6 {[%clk 0:01:28.4]} 31... Qc5 {[%clk
0:01:07.8]} 32. Bb3 {[%clk 0:01:24.5]} 32... Rxd1 {[%clk 0:01:07.2]} 33. Bxd1
{[%clk 0:01:25.4]} 33... e3 {[%clk 0:01:06.3]} 34. Bf3 {[%clk 0:01:18.2]} 34...
Nd5 {[%clk 0:01:03.2]} 35. Kg2 {[%clk 0:01:15.5]} 35... e2 {[%clk 0:01:01.6]}
36. b7 {[%clk 0:01:15.7]} 36... Bc3 {[%clk 0:00:57.5]} 37. Qxe2 {[%clk
0:01:02.1]} 37... Rxe2+ {[%clk 0:00:56.4]} 38. Bxe2 {[%clk 0:01:03]} 38... Qc7
{[%clk 0:00:54.5]} 39. a6 {[%clk 0:01:02.7]} 39... Bd4 {[%clk 0:00:51.7]} 40. h4
{[%clk 0:00:59.2]} 40... Ba7 {[%clk 0:00:51]} 41. Kh3 {[%clk 0:00:59.3]} 41...
Bb8 {[%clk 0:00:51.2]} 0-1

[Event "Early-Titled-Tuesday-Blitz-May-07-2024"]
[Site "Chess.com"]
[Date "2024.05.07"]
[Round "3"]
[White "Payyappat"]
[Black "BashirovKemal"]
[Result "0-1"]
[WhiteElo "2501"]
[BlackElo "2688"]
[TimeControl "180+1"]
[EndTime "8:30:40 PDT"]
[Termination "BashirovKemal won by checkmate"]

1. e4 {[%clk 0:02:43.9]} 1... c5 {[%clk 0:02:59.1]} 2. Nf3 {[%clk 0:02:43.5]}
2... d6 {[%clk 0:02:58.6]} 3. d4 {[%clk 0:02:44.4]} 3... cxd4 {[%clk 0:02:59.2]}
4. Nxd4 {[%clk 0:02:45.3]} 4... Nf6 {[%clk 0:02:59.6]} 5. Nc3 {[%clk 0:02:42.6]}
5... a6 {[%clk 0:02:59.6]} 6. h4 {[%clk 0:02:41.6]} 6... e5 {[%clk 0:02:55.9]}
7. Nb3 {[%clk 0:02:40.9]} 7... Nc6 {[%clk 0:02:54.6]} 8. f4 {[%clk 0:02:41]}
8... Be7 {[%clk 0:02:50.6]} 9. f5 {[%clk 0:02:40.7]} 9... O-O {[%clk 0:02:45.5]}
10. g4 {[%clk 0:02:40.1]} 10... d5 {[%clk 0:02:42.4]} 11. g5 {[%clk 0:02:39.4]}
11... Nxe4 {[%clk 0:02:37.1]} 12. Nxe4 {[%clk 0:02:26.7]} 12... dxe4 {[%clk
0:02:38]} 13. Qg4 {[%clk 0:02:26.1]} 13... Nd4 {[%clk 0:02:20.3]} 14. Nxd4
{[%clk 0:02:23.9]} 14... Qxd4 {[%clk 0:02:17.6]} 15. c3 {[%clk 0:02:21.9]} 15...
Qa4 {[%clk 0:02:17.5]} 16. Bg2 {[%clk 0:02:13.8]} 16... Rd8 {[%clk 0:02:08.4]}
17. O-O {[%clk 0:02:11.3]} 17... g6 {[%clk 0:02:07.4]} 18. Qxe4 {[%clk
0:01:44.8]} 18... Qxe4 {[%clk 0:01:48.1]} 19. Bxe4 {[%clk 0:01:45.7]} 19... gxf5
{[%clk 0:01:48]} 20. Bxf5 {[%clk 0:01:46.6]} 20... Bxf5 {[%clk 0:01:48.3]} 21.
Rxf5 {[%clk 0:01:47.5]} 21... Rd1+ {[%clk 0:01:48.7]} 22. Rf1 {[%clk 0:01:46.7]}
22... Bc5+ {[%clk 0:01:43.7]} 23. Kg2 {[%clk 0:01:42.7]} 23... Rad8 {[%clk
0:01:40.7]} 24. b4 {[%clk 0:01:30.9]} 24... Bb6 {[%clk 0:01:40.5]} 25. Rxd1
{[%clk 0:01:18.5]} 25... Rxd1 {[%clk 0:01:40.1]} 26. Kf3 {[%clk 0:01:18.9]}
26... Re1 {[%clk 0:01:25.5]} 27. Bb2 {[%clk 0:01:13.9]} 27... Re3+ {[%clk
0:01:17.6]} 28. Kg4 {[%clk 0:01:11.4]} 28... Re4+ {[%clk 0:01:16.9]} 29. Kf5
{[%clk 0:01:10.3]} 29... Rxh4 {[%clk 0:01:16.6]} 30. Kxe5 {[%clk 0:01:10]} 30...
Bc7+ {[%clk 0:01:14.2]} 31. Kf6 {[%clk 0:01:03.7]} 31... Rh2 {[%clk 0:01:09.5]}
32. Rb1 {[%clk 0:00:46.7]} 32... Rf2+ {[%clk 0:01:04.8]} 33. Ke7 {[%clk
0:00:43.8]} 33... Rd2 {[%clk 0:01:02.1]} 34. c4 {[%clk 0:00:42.8]} 34... Bd8+
{[%clk 0:00:53.5]} 35. Ke8 {[%clk 0:00:37.4]} 35... Bxg5 {[%clk 0:00:53.9]} 36.
Rg1 {[%clk 0:00:35.8]} 36... Rd8# {[%clk 0:00:53.2]} 0-1

[Event "Early-Titled-Tuesday-Blitz-May-07-2024"]
[Site "Chess.com"]
[Date "2024.05.07"]
[Round "3"]
[White "Eliwood44"]
[Black "Sanyura"]
[Result "0-1"]
[WhiteElo "2452"]
[BlackElo "2623"]
[TimeControl "180+1"]
[EndTime "8:30:44 PDT"]
[Termination "Sanyura won by checkmate"]

1. d4 {[%clk 0:02:48]} 1... Nf6 {[%clk 0:02:59.3]} 2. c4 {[%clk 0:02:46.4]} 2...
e6 {[%clk 0:02:59.4]} 3. Nf3 {[%clk 0:02:46]} 3... d5 {[%clk 0:02:59]} 4. Nc3
{[%clk 0:02:42.3]} 4... c5 {[%clk 0:02:58.8]} 5. cxd5 {[%clk 0:02:39.8]} 5...
exd5 {[%clk 0:02:58.8]} 6. e3 {[%clk 0:02:38.8]} 6... Nc6 {[%clk 0:02:58.6]} 7.
Bb5 {[%clk 0:02:38.2]} 7... Bd6 {[%clk 0:02:52.4]} 8. a3 {[%clk 0:02:33.3]} 8...
O-O {[%clk 0:02:52.1]} 9. dxc5 {[%clk 0:02:33.5]} 9... Bxc5 {[%clk 0:02:52.2]}
10. b4 {[%clk 0:02:33.9]} 10... Bb6 {[%clk 0:02:52.4]} 11. Bb2 {[%clk
0:02:34.1]} 11... d4 {[%clk 0:02:51.1]} 12. exd4 {[%clk 0:02:33.2]} 12... Nxd4
{[%clk 0:02:46.1]} 13. Nxd4 {[%clk 0:02:32.4]} 13... Bxd4 {[%clk 0:02:35.4]} 14.
O-O {[%clk 0:02:31.9]} 14... Bg4 {[%clk 0:02:32.2]} 15. Be2 {[%clk 0:02:31.3]}
15... Bxe2 {[%clk 0:02:13.7]} 16. Qxe2 {[%clk 0:02:29.9]} 16... Rc8 {[%clk
0:02:13.8]} 17. Nb5 {[%clk 0:02:22.1]} 17... Re8 {[%clk 0:02:03]} 18. Qd2 {[%clk
0:02:17]} 18... Bxb2 {[%clk 0:01:46]} 19. Qxb2 {[%clk 0:02:17.9]} 19... Qd3
{[%clk 0:01:22.5]} 20. a4 {[%clk 0:02:12.3]} 20... a6 {[%clk 0:00:58.1]} 21.
Rfd1 {[%clk 0:01:48.2]} 21... Qg6 {[%clk 0:00:19.8]} 22. Nd6 {[%clk 0:01:47.1]}
22... Rc2 {[%clk 0:00:19.8]} 23. Qb1 {[%clk 0:01:42.3]} 23... Ree2 {[%clk
0:00:18.9]} 24. Nxb7 {[%clk 0:01:21.4]} 24... h5 {[%clk 0:00:16.6]} 25. Rf1
{[%clk 0:01:21.1]} 25... Ng4 {[%clk 0:00:12.1]} 26. b5 {[%clk 0:01:05.7]} 26...
Ne3 {[%clk 0:00:12.1]} 27. g3 {[%clk 0:01:02.3]} 27... Qe4 {[%clk 0:00:12.1]}
28. f3 {[%clk 0:00:57.7]} 28... Rg2+ {[%clk 0:00:11.8]} 29. Kh1 {[%clk
0:00:58.3]} 29... Rxh2+ {[%clk 0:00:12.3]} 30. Kg1 {[%clk 0:00:59.2]} 30...
Rcg2# {[%clk 0:00:12.7]} 0-1

[Event "Early-Titled-Tuesday-Blitz-May-07-2024"]
[Site "Chess.com"]
[Date "2024.05.07"]
[Round "3"]
[White "rookpower2004"]
[Black "AnnaChessLook"]
[Result "0-1"]
[WhiteElo "2555"]
[BlackElo "2314"]
[TimeControl "180+1"]
[EndTime "8:30:44 PDT"]
[Termination "AnnaChessLook won on time"]

1. e4 {[%clk 0:03:00.9]} 1... c5 {[%clk 0:02:59.5]} 2. Nf3 {[%clk 0:03:00.2]}
2... Nc6 {[%clk 0:03:00]} 3. d4 {[%clk 0:02:59.6]} 3... cxd4 {[%clk 0:03:00.6]}
4. Nxd4 {[%clk 0:03:00.1]} 4... g6 {[%clk 0:03:01.4]} 5. f4 {[%clk 0:02:55.1]}
5... Bg7 {[%clk 0:03:00.8]} 6. Nf3 {[%clk 0:02:55.8]} 6... d6 {[%clk 0:03:00]}
7. Bd3 {[%clk 0:02:55.8]} 7... Nf6 {[%clk 0:03:00.2]} 8. c3 {[%clk 0:02:56]}
8... O-O {[%clk 0:03:00.8]} 9. O-O {[%clk 0:02:56.2]} 9... Bg4 {[%clk
0:03:01.5]} 10. Kh1 {[%clk 0:02:56.3]} 10... Qb6 {[%clk 0:03:01.8]} 11. Qe1
{[%clk 0:02:56.5]} 11... Rac8 {[%clk 0:02:58.2]} 12. Na3 {[%clk 0:02:57]} 12...
a6 {[%clk 0:02:57.3]} 13. Nc4 {[%clk 0:02:53.3]} 13... Qc7 {[%clk 0:02:57]} 14.
e5 {[%clk 0:02:48.5]} 14... dxe5 {[%clk 0:02:50.3]} 15. Ncxe5 {[%clk 0:02:29.8]}
15... Bxf3 {[%clk 0:02:48.3]} 16. Nxf3 {[%clk 0:02:26.2]} 16... Rcd8 {[%clk
0:02:44.4]} 17. Bc2 {[%clk 0:02:25.8]} 17... e6 {[%clk 0:02:37.7]} 18. Qh4
{[%clk 0:02:22.9]} 18... Ne7 {[%clk 0:02:33.6]} 19. Ne5 {[%clk 0:02:13.2]} 19...
Nf5 {[%clk 0:02:33.9]} 20. Qh3 {[%clk 0:02:11.9]} 20... h5 {[%clk 0:02:24]} 21.
Bxf5 {[%clk 0:02:03.4]} 21... exf5 {[%clk 0:02:23.4]} 22. Be3 {[%clk 0:02:03.8]}
22... Nd5 {[%clk 0:02:12.7]} 23. Rae1 {[%clk 0:01:41.6]} 23... Rfe8 {[%clk
0:02:08.1]} 24. Bd4 {[%clk 0:00:55.6]} 24... Nxf4 {[%clk 0:02:02.9]} 25. Rxf4
{[%clk 0:00:51.2]} 25... Bxe5 {[%clk 0:02:02.8]} 26. Bxe5 {[%clk 0:00:48.5]}
26... Rxe5 {[%clk 0:02:02.4]} 27. Ref1 {[%clk 0:00:48]} 27... Red5 {[%clk
0:01:55.7]} 28. Qh4 {[%clk 0:00:41.2]} 28... Rd1 {[%clk 0:01:51.8]} 29. Rxf5
{[%clk 0:00:24.8]} 29... gxf5 {[%clk 0:01:25.3]} 30. Qg5+ {[%clk 0:00:23.8]}
30... Kf8 {[%clk 0:01:25.9]} 31. Qh6+ {[%clk 0:00:22.3]} 31... Ke8 {[%clk
0:01:26.4]} 32. Qh8+ {[%clk 0:00:08.1]} 32... Ke7 {[%clk 0:01:26.7]} 0-1